fUSD/lending_fUSD_20250215
["ID","MTS","AMOUNT","RATE_DAILY","PERIOD"]
[353163765,1739617853486,-500.0,0.00011123,2]
[353163766,1739617853496,-606.0,0.00011123,2]
[353163767,1739617853506,-500.0,0.00011123,2]
[353163768,1739617853515,-500.0,0.00011123,2]
[353163769,1739617853525,-500.0,0.00011123,2]
[353163770,1739617853534,-795.54,0.00011123,2]
[353163771,1739617853544,-923.83,0.00011123,2]
[353163772,1739617853554,-500.0,0.00011123,2]
[353163773,1739617853563,-573.49,0.00011123,2]
[353163774,1739617853573,-500.0,0.00011123,2]
[353163775,1739617853583,-1129.06,0.00011123,2]
[353163776,1739617853592,-500.0,0.00011123,2]
[353163777,1739617853602,-500.0,0.00011123,2]
[353163778,1739617853612,-500.0,0.00011123,2]
[353163779,1739617853622,-933.1,0.00011123,2]
[353163780,1739617853631,-500.0,0.00011123,2]
[353163781,1739617853642,-500.0,0.00011123,2]
[353163782,1739617853656,-500.0,0.00011123,2]
[353163783,1739617853665,-500.0,0.00011123,2]
[353163784,1739617853675,-500.0,0.00011123,2]
[353163785,1739617853684,-640.08958713,0.00011123,2]
[353163786,1739617853695,-500.0,0.00011123,2]
[353163787,1739617853705,-1115.69,0.00011123,2]
[353163788,1739617853715,-500.0,0.00011123,2]
[353163789,1739617853725,-500.0,0.00011123,2]
[353163790,1739617853736,-500.0,0.00011123,2]
[353163791,1739617853747,-500.0,0.00011123,2]
[353163792,1739617853758,-500.0,0.00011123,2]
[353163793,1739617853767,-678.3,0.00011123,2]
[353163794,1739617853777,-500.0,0.00011123,2]
[353163795,1739617853788,-648.47,0.00011123,2]
[353163796,1739617853798,-1205.2,0.00011123,2]
[353163797,1739617853808,-500.0,0.00011123,2]
[353163798,1739617853818,-500.0,0.00011123,2]
[353163799,1739617853828,-500.0,0.00011123,2]
[353163800,1739617853838,-529.08,0.00011123,2]
[353163801,1739617853848,-546.76,0.00011123,2]
[353163802,1739617853858,-500.0,0.00011123,2]
[353163803,1739617853868,-500.0,0.00011123,2]
[353163804,1739617853877,-500.0,0.00011123,2]
[353163805,1739617853887,-500.0,0.00011123,2]
[353163806,1739617853897,-500.0,0.00011123,2]
[353163807,1739617853906,-709.98,0.00011123,2]
[353163808,1739617853917,-500.0,0.00011123,2]
[353163809,1739617853927,-500.0,0.00011123,2]
[353163810,1739617853938,-500.0,0.00011123,2]
[353163811,1739617853948,-1183.19,0.00011123,2]
[353163812,1739617853960,-500.0,0.00011123,2]
[353163813,1739617853970,-500.0,0.00011123,2]
[353163814,1739617854122,-500.0,0.00011123,2]
[353163815,1739617854133,-500.0,0.00011123,2]
[353163816,1739617854142,-500.0,0.00011123,2]
[353163817,1739617854151,-500.0,0.00011123,2]
[353163818,1739617854161,-500.0,0.00011123,2]
[353163819,1739617854170,-500.0,0.00011123,2]
[353163820,1739617854180,-509.02,0.00011123,2]
[353163821,1739617854189,-500.0,0.00011123,2]
[353163822,1739617854198,-500.0,0.00011123,2]
[353163823,1739617854208,-503.17739028,0.00011123,2]
[353163824,1739617854218,-500.0,0.00011123,2]
[353163825,1739617854227,-500.0,0.00011123,2]
[353163826,1739617854236,-500.0,0.00011123,2]
[353163827,1739617854246,-500.0,0.00011123,2]
[353163828,1739617854257,-505.22,0.00011123,2]
[353163829,1739617854268,-500.0,0.00011123,2]
[353163830,1739617854278,-500.0,0.00011123,2]
[353163831,1739617854287,-500.0,0.00011123,2]
[353163832,1739617854297,-500.0,0.00011123,2]
[353163833,1739617854306,-500.0,0.00011123,2]
[353163834,1739617854315,-822.61,0.00011123,2]
[353163835,1739617854325,-500.0,0.00011123,2]
[353163836,1739617854334,-749.41,0.00011123,2]
[353163837,1739617854343,-562.51,0.00011123,2]
[353163838,1739617854352,-500.0,0.00011123,2]
[353163839,1739617854362,-1232.56,0.00011123,2]
[353163840,1739617854371,-500.0,0.00011123,2]
[353163841,1739617854380,-500.0,0.00011123,2]
[353163842,1739617854389,-500.0,0.00011123,2]
[353163843,1739617854398,-500.0,0.00011123,2]
[353163844,1739617854408,-1330.07,0.00011123,2]
[353163845,1739617854418,-500.0,0.00011123,2]
[353163846,1739617854428,-500.0,0.00011123,2]
[353163847,1739617854437,-726.25,0.00011123,2]
[353163848,1739617854447,-181.65081899,0.00011123,2]
[353163849,1739617854458,-500.0,0.00011123,2]
[353163850,1739617854467,-500.0,0.00011123,2]
[353163851,1739617854476,-820.31,0.00011123,2]
[353163852,1739617854486,-509.5443679,0.00011123,2]
[353163853,1739617854496,-507.96377876,0.00011123,2]
[353163854,1739617854506,-500.0,0.00011123,2]
[353163855,1739617854516,-564.99,0.00011123,2]
[353163856,1739617854526,-500.0,0.00011123,2]
[353163857,1739617854537,-500.0,0.00011123,2]
[353163858,1739617854548,-500.0,0.00011123,2]
[353163859,1739617854557,-744.0,0.00011123,2]
[353163860,1739617854568,-500.0,0.00011123,2]
[353163861,1739617854577,-500.0,0.00011123,2]
[353163862,1739617854587,-500.0,0.00011123,2]
[353163863,1739617854596,-500.0,0.00011123,2]
[353163864,1739617854605,-500.0,0.00011123,2]
[353163865,1739617854614,-500.0,0.00011123,2]
[353163866,1739617854624,-500.0,0.00011123,2]
[353163867,1739617854633,-500.0,0.00011123,2]
[353163868,1739617854643,-500.0,0.00011123,2]
[353163869,1739617854657,-1199.42,0.00011123,2]
[353163870,1739617854667,-500.0,0.00011123,2]
[353163871,1739617854676,-500.0,0.00011123,2]
[353163872,1739617854687,-741.53,0.00011123,2]
[353163873,1739617854698,-500.0,0.00011123,2]
[353163874,1739617854708,-500.0,0.00011123,2]
[353163875,1739617854718,-500.0,0.00011123,2]
[353163876,1739617854728,-500.0,0.00011123,2]
[353163877,1739617854738,-500.0,0.00011123,2]
[353163878,1739617854747,-500.0,0.00011123,2]
[353163879,1739617854756,-500.0,0.00011123,2]
[353163880,1739617854764,-976.58,0.00011123,2]
[353163881,1739617854773,-500.0,0.00011123,2]
[353163882,1739617854782,-500.0,0.00011123,2]
[353163883,1739617854791,-676.62,0.00011123,2]
[353163884,1739617854800,-500.0,0.00011123,2]
[353163885,1739617854809,-500.0,0.00011123,2]
[353163886,1739617854818,-500.0,0.00011123,2]
[353163887,1739617854827,-500.0,0.00011123,2]
[353163888,1739617854836,-500.0,0.00011123,2]
[353163889,1739617854845,-504.3233696,0.00011123,2]
[353163890,1739617854854,-500.0,0.00011123,2]
[353163891,1739617854865,-1055.85,0.00011123,2]
[353163892,1739617854876,-500.0,0.00011123,2]
[353163893,1739617854885,-500.0,0.00011123,2]
[353163894,1739617854895,-500.0,0.00011123,2]
[353163895,1739617854904,-500.12,0.00011123,2]
[353163896,1739617854913,-1205.74308917,0.00011124,2]
[353163897,1739617854922,-500.0,0.00011164,2]
[353163898,1739617854932,-1937.74080182,0.00011177,2]
[353163899,1739617854941,-186.64166102,0.00011187,2]
[353163900,1739617854950,-250.62104882,0.00011191,2]
[353163901,1739617854959,-500.0,0.00011204,2]
[353163902,1739617854968,-500.0,0.00011204,2]
[353163903,1739617854977,-500.0,0.00011204,2]
[353163904,1739617854986,-3426.59,0.00011204,2]
[353163905,1739617854995,-523.62,0.00011204,2]
[353163906,1739617855005,-513.09,0.00011204,2]
[353163907,1739617855015,-500.0,0.00011204,2]
[353163908,1739617855024,-500.0,0.00011204,2]
[353163909,1739617855034,-500.0,0.00011204,2]
[353163910,1739617855045,-500.0,0.00011204,2]
[353163911,1739617855053,-500.0,0.00011204,2]
[353163912,1739617855063,-631.97,0.00011204,2]
[353163913,1739617855072,-500.0,0.00011204,2]
[353163914,1739617855081,-500.0,0.00011204,2]
[353163915,1739617855092,-506.11,0.00011204,2]
[353163916,1739617855102,-772.95,0.00011204,2]
[353163917,1739617855112,-1000.0,0.00011204,2]
[353163918,1739617855122,-878.85,0.00011204,2]
[353163919,1739617855131,-500.0,0.00011204,2]
[353163920,1739617855142,-565.51,0.00011204,2]
[353163921,1739617855151,-695.45,0.00011204,2]
[353163922,1739617855161,-398.72952442,0.00011204,2]
[353163923,1739617855170,-1298.38,0.00011204,2]
[353163924,1739617855180,-292.1,0.00011205,2]
[353163925,1739617855190,-500.0,0.00011205,2]
[353163926,1739617855199,-288.2,0.00011205,2]
[353163927,1739617855208,-563.46,0.00011205,2]
[353163928,1739617855218,-490.32,0.00011205,2]
[353163929,1739617855227,-546.72,0.00011205,2]
[353163930,1739617855237,-500.0,0.00011205,2]
[353163931,1739617855247,-236.92,0.00011205,2]
[353163932,1739617855257,-561.34,0.00011205,2]
[353163933,1739617855267,-500.0,0.00011205,2]
[353163934,1739617855277,-500.0,0.00011205,2]
[353163935,1739617855287,-500.0,0.00011205,2]
[353163936,1739617855297,-500.0,0.00011205,2]
[353163937,1739617855306,-500.0,0.00011205,2]
[353163938,1739617855316,-500.0,0.00011205,2]
[353163939,1739617855326,-500.0,0.00011205,2]
[353163940,1739617855335,-500.0,0.00011205,2]
[353163941,1739617855345,-500.0,0.00011205,2]
[353163942,1739617855354,-420.08,0.00011205,2]
[353163943,1739617855363,-500.0,0.00011205,2]
[353163944,1739617855373,-378.54,0.00011205,2]
[353163945,1739617855383,-244.88,0.00011205,2]
[353163946,1739617855392,-500.0,0.00011205,2]
[353163947,1739617855402,-500.0,0.00011205,2]
[353163948,1739617855411,-500.0,0.00011205,2]
[353163949,1739617855421,-500.0,0.00011205,2]
[353163950,1739617855431,-591.92,0.00011205,2]
[353163951,1739617855440,-500.0,0.00011205,2]
[353163952,1739617855449,-236.48,0.00011205,2]
[353163953,1739617855459,-500.0,0.00011205,2]
[353163954,1739617855468,-500.0,0.00011205,2]
[353163955,1739617855477,-500.0,0.00011205,2]
[353163956,1739617855487,-500.0,0.00011205,2]
[353163957,1739617855497,-500.0,0.00011205,2]
[353163958,1739617855506,-500.0,0.00011205,2]
[353163959,1739617855516,-500.0,0.00011205,2]
[353163960,1739617855525,-500.0,0.00011205,2]
[353163961,1739617855535,-500.0,0.00011205,2]
[353163962,1739617855544,-500.0,0.00011205,2]
[353163963,1739617855555,-500.0,0.00011205,2]
[353163964,1739617855565,-500.0,0.00011205,2]
[353163965,1739617855574,-500.0,0.00011205,2]
[353163966,1739617855584,-500.0,0.00011205,2]
[353163967,1739617855594,-500.0,0.00011205,2]
[353163968,1739617855604,-500.0,0.00011205,2]
[353163969,1739617855613,-500.0,0.00011205,2]
[353163970,1739617855623,-573.28,0.00011205,2]
[353163971,1739617855632,-500.0,0.00011205,2]
[353163972,1739617855641,-500.0,0.00011205,2]
[353163973,1739617855656,-500.0,0.00011205,2]
[353163974,1739617855665,-500.0,0.00011205,2]
[353163975,1739617855675,-500.0,0.00011205,2]
[353163976,1739617855685,-500.0,0.00011205,2]
[353163977,1739617855695,-500.0,0.00011205,2]
[353163978,1739617855705,-500.0,0.00011205,2]
[353163979,1739617855715,-500.0,0.00011205,2]
[353163980,1739617855725,-500.0,0.00011205,2]
[353163981,1739617855736,-500.0,0.00011205,2]
[353163982,1739617855745,-442.58,0.00011205,2]
[353163983,1739617855755,-500.0,0.00011205,2]
[353163984,1739617855764,-500.0,0.00011205,2]
[353163985,1739617855774,-500.0,0.00011205,2]
[353163986,1739617855783,-500.0,0.00011205,2]
[353163987,1739617855792,-314.88,0.00011205,2]
[353163988,1739617855803,-500.0,0.00011205,2]
[353163989,1739617855812,-500.0,0.00011205,2]
[353163990,1739617855822,-500.0,0.00011205,2]
[353163991,1739617855831,-500.0,0.00011205,2]
[353163992,1739617855841,-500.0,0.00011205,2]
[353163993,1739617855851,-500.0,0.00011205,2]
[353163994,1739617855860,-500.0,0.00011205,2]
[353163995,1739617855869,-500.0,0.00011205,2]
[353163996,1739617855879,-345.56295526,0.00011205,2]
[353163997,1739617856129,-154.43704474,0.00011205,2]
[353163998,1739617856139,-456.76,0.00011205,2]
[353163999,1739617856149,-375.16113513,0.00011205,2]
[353164000,1739617856160,-124.83886487,0.00011205,2]
[353164001,1739617856170,-491.11071783,0.00011205,2]
[353164002,1739617856180,-500.0,0.00011205,2]
[353164003,1739617856189,-492.49926365,0.00011205,2]
[353164004,1739617856201,-7.50073635,0.00011205,2]
[353164005,1739617856211,-398.53926345,0.00011205,2]
[353164006,1739617856222,-215.61073655,0.00011205,2]
[353164007,1739617856232,-500.0,0.00011205,2]
[353164008,1739617856243,-168.18232309,0.00011205,2]
[353164009,1739617856255,-331.81767691,0.00011205,2]
[353164010,1739617856264,-337.31992658,0.00011205,2]
[353164011,1739617856275,-162.68007342,0.00011205,2]
[353164012,1739617856284,-500.0,0.00011205,2]
[353164013,1739617856294,-32.66504085,0.00011205,2]
[353164014,1739617856306,-322.310568,0.00011205,2]
[353164015,1739617856318,-145.02439115,0.00011205,2]
[353164016,1739617856327,-176.56750885,0.00011205,2]
[353164017,1739617856347,-323.43249115,0.00011205,2]
[353164018,1739617856356,-500.0,0.00011205,2]
[353164019,1739617856366,-500.0,0.00011205,2]
[353164020,1739617856375,-589.54,0.00011205,2]
[353164021,1739617856385,-500.0,0.00011205,2]
[353164022,1739617856394,-500.0,0.00011205,2]
[353164023,1739617856404,-500.0,0.00011205,2]
[353164024,1739617856413,-500.0,0.00011205,2]
[353164025,1739617856422,-500.0,0.00011205,2]
[353164026,1739617856432,-500.0,0.00011205,2]
[353164027,1739617856441,-500.0,0.00011205,2]
[353164028,1739617856450,-500.0,0.00011205,2]
[353164029,1739617856459,-428.63237203,0.00011205,2]
[353164030,1739617856474,-71.36762797,0.00011205,2]
[353164031,1739617856483,-500.0,0.00011205,2]
[353164032,1739617856492,-125.47646509,0.00011205,2]
[353164033,1739617856503,-374.52353491,0.00011205,2]
[353164034,1739617856513,-578.40780476,0.00011205,2]
[353164035,1739617856523,-58.11219524,0.00011205,2]
[353164036,1739617856533,-500.0,0.00011205,2]
[353164037,1739617856542,-258.24,0.00011205,2]
[353164038,1739617856551,-500.0,0.00011205,2]
[353164039,1739617856560,-500.0,0.00011205,2]
[353164040,1739617856570,-500.0,0.00011205,2]
[353164041,1739617856579,-500.0,0.00011205,2]
[353164042,1739617856588,-500.0,0.00011205,2]
[353164043,1739617856597,-526.7,0.00011205,2]
[353164044,1739617856607,-254.74780456,0.00011205,2]
[353164045,1739617856618,-245.25219544,0.00011205,2]
[353164046,1739617856628,-500.0,0.00011205,2]
[353164047,1739617856638,-500.0,0.00011205,2]
[353164048,1739617856651,-418.53530045,0.00011205,2]
[353164049,1739617856663,-81.46469955,0.00011205,2]
[353164050,1739617856672,-500.0,0.00011205,2]
[353164051,1739617856682,-205.89530045,0.00011205,2]
[353164052,1739617856695,-294.10469955,0.00011205,2]
[353164053,1739617856704,-457.28,0.00011205,2]
[353164054,1739617856713,-500.0,0.00011205,2]
[353164055,1739617856726,-500.0,0.00011205,2]
[353164056,1739617856735,-500.0,0.00011205,2]
[353164057,1739617856745,-43.61530045,0.00011205,2]
[353164058,1739617856766,-500.0,0.0001104,2]
[353164059,1739617856777,-456.38469955,0.00011205,2]
[353164060,1739617856789,-500.0,0.00011205,2]
[353164061,1739617856799,-500.0,0.00011205,2]
[353164062,1739617856808,-500.0,0.00011205,2]
[353164063,1739617856818,-500.0,0.00011205,2]
[353164064,1739617856828,-500.0,0.00011205,2]
[353164065,1739617856837,-338.18,0.00011205,2]
[353164066,1739617856846,-356.44,0.00011205,2]
[353164067,1739617856856,-500.0,0.00011205,2]
[353164068,1739617856866,-500.0,0.00011205,2]
[353164069,1739617856875,-500.0,0.00011205,2]
[353164070,1739617856884,-500.0,0.00011205,2]
[353164071,1739617856894,-500.0,0.00011205,2]
[353164072,1739617856903,-500.0,0.00011205,2]
[353164073,1739617856913,-500.0,0.00011205,2]
[353164074,1739617856922,-500.0,0.00011205,2]
[353164075,1739617856933,-282.51384547,0.00011205,2]
[353164076,1739617856942,-500.0,0.00011205,2]
[353164077,1739617856952,-500.0,0.00011205,2]
[353164078,1739617856961,-500.0,0.00011205,2]
[353164079,1739617856970,-500.0,0.00011205,2]
[353164080,1739617856979,-500.0,0.00011205,2]
[353164081,1739617856989,-500.0,0.00011205,2]
[353164082,1739617856999,-500.0,0.00011205,2]
[353164083,1739617857009,-500.0,0.00011205,2]
[353164084,1739617857018,-500.0,0.00011205,2]
[353164085,1739617857027,-500.0,0.00011205,2]
[353164086,1739617857037,-500.0,0.00011205,2]
[353164087,1739617857046,-500.0,0.00011205,2]
[353164088,1739617857055,-598.5,0.00011205,2]
[353164089,1739617857064,-500.0,0.00011205,2]
[353164090,1739617857074,-500.0,0.00011205,2]
[353164091,1739617857084,-500.0,0.00011205,2]
[353164092,1739617857093,-500.0,0.00011205,2]
[353164093,1739617857268,-500.0,0.00011205,2]
[353164094,1739617857277,-500.0,0.00011205,2]
[353164095,1739617857286,-616.09489679,0.00011205,2]
[353164096,1739617857297,-500.0,0.00011205,2]
[353164097,1739617857306,-500.0,0.00011205,2]
[353164098,1739617857316,-294.78,0.00011205,2]
[353164099,1739617857325,-500.0,0.00011205,2]
[353164100,1739617857336,-500.0,0.00011205,2]
[353164101,1739617857346,-500.0,0.00011205,2]
[353164102,1739617857356,-500.0,0.00011205,2]
[353164103,1739617857365,-500.0,0.00011205,2]
[353164104,1739617857374,-638.06,0.00011205,2]
[353164105,1739617857384,-500.0,0.00011205,2]
[353164106,1739617857395,-500.0,0.00011205,2]
[353164107,1739617857408,-500.0,0.00011205,2]
[353164108,1739617857419,-500.0,0.00011205,2]
[353164109,1739617857429,-500.0,0.00011205,2]
[353164110,1739617857438,-500.0,0.00011205,2]
[353164111,1739617857447,-536.36,0.00011205,2]
[353164112,1739617857457,-361.60681252,0.00011205,2]
[353164113,1739617857466,-500.0,0.00011205,2]
[353164114,1739617857476,-500.0,0.00011205,2]
[353164115,1739617857485,-500.0,0.00011205,2]
[353164116,1739617857495,-500.0,0.00011205,2]
[353164117,1739617857505,-500.0,0.00011205,2]
[353164118,1739617857514,-500.0,0.00011205,2]
[353164119,1739617857523,-500.0,0.00011205,2]
[353164120,1739617857536,-500.0,0.00011205,2]
[353164121,1739617857547,-500.0,0.00011205,2]
[353164122,1739617857557,-500.0,0.00011205,2]
[353164123,1739617857566,-500.0,0.00011205,2]
[353164124,1739617857576,-500.0,0.00011205,2]
[353164125,1739617857585,-213.681323,0.00011205,2]
[353164126,1739617857594,-500.0,0.00011205,2]
[353164127,1739617857604,-500.0,0.00011205,2]
[353164128,1739617857614,-646.04,0.00011205,2]
[353164129,1739617857624,-500.0,0.00011205,2]
[353164130,1739617857633,-500.0,0.00011205,2]
[353164131,1739617857645,-523.59,0.00011205,2]
[353164132,1739617857659,-729.15,0.00011205,2]
[353164133,1739617857668,-207.566223,0.00011205,2]
[353164134,1739617857677,-549.22,0.00011205,2]
[353164135,1739617857686,-998.55,0.00011205,2]
[353164136,1739617857698,-500.0,0.00011205,2]
[353164137,1739617857707,-574.1,0.00011205,2]
[353164138,1739617857717,-500.0,0.00011205,2]
[353164139,1739617857728,-500.0,0.00011205,2]
[353164140,1739617857739,-223.82389012,0.00011205,2]
[353164141,1739617857753,-276.17610988,0.00011205,2]
[353164142,1739617857763,-502.87,0.00011205,2]
[353164143,1739617857773,-500.0,0.00011205,2]
[353164144,1739617857783,-500.0,0.00011205,2]
[353164145,1739617857792,-246.98593043,0.00011205,2]
[353164146,1739617858137,-500.0,0.0001104,2]
[353164147,1739617858147,-500.0,0.00011123,2]
[353164148,1739617858157,-500.0,0.00011123,2]
[353164149,1739617858167,-253.01406957,0.00011205,2]
[353164150,1739617858176,-1272.75,0.00011205,2]
[353164151,1739617858186,-500.0,0.00011205,2]
[353164152,1739617858195,-500.0,0.00011205,2]
[353164153,1739617858204,-500.0,0.00011205,2]
[353164154,1739617858213,-500.0,0.00011205,2]
[353164155,1739617858223,-785.49,0.00011205,2]
[353164156,1739617858232,-500.0,0.00011205,2]
[353164157,1739617858241,-500.0,0.00011205,2]
[353164158,1739617858250,-691.99,0.00011205,2]
[353164159,1739617858260,-672.94,0.00011205,2]
[353164160,1739617858270,-500.0,0.00011205,2]
[353164161,1739617858279,-500.0,0.00011205,2]
[353164162,1739617858287,-500.0,0.00011205,2]
[353164163,1739617858297,-810.44,0.00011205,2]
[353164164,1739617858307,-500.0,0.00011205,2]
[353164165,1739617858316,-500.0,0.00011205,2]
[353164166,1739617858325,-545.71699571,0.00011205,2]
[353164167,1739617858335,-500.0,0.00011205,2]
[353164168,1739617858344,-837.5,0.00011205,2]
[353164169,1739617858353,-500.0,0.00011205,2]
[353164170,1739617858363,-500.0,0.00011205,2]
[353164171,1739617858374,-963.46,0.00011205,2]
[353164172,1739617858383,-500.0,0.00011205,2]
[353164173,1739617858392,-500.0,0.00011205,2]
[353164174,1739617858401,-1872.53,0.00011205,2]
[353164175,1739617858411,-500.0,0.00011205,2]
[353164176,1739617858420,-500.0,0.00011205,2]
[353164177,1739617858430,-1072.6,0.00011205,2]
[353164178,1739617858439,-2648.91,0.00011205,2]
[353164179,1739617858449,-500.0,0.00011205,2]
[353164180,1739617858459,-500.0,0.00011205,2]
[353164181,1739617858468,-500.0,0.00011205,2]
[353164182,1739617858478,-500.0,0.00011205,2]
[353164183,1739617858487,-500.0,0.00011205,2]
[353164184,1739617858495,-500.0,0.00011205,2]
[353164185,1739617858504,-500.0,0.00011205,2]
[353164186,1739617858514,-542.92,0.00011205,2]
[353164187,1739617858523,-500.0,0.00011205,2]
[353164188,1739617858531,-500.0,0.00011205,2]
[353164189,1739617858540,-500.0,0.00011205,2]
[353164190,1739617858549,-804.44,0.00011205,2]
[353164191,1739617858558,-500.0,0.00011205,2]
[353164192,1739617858571,-1007.19,0.00011205,2]
[353164193,1739617858585,-500.0,0.00011205,2]
[353164194,1739617858598,-500.0,0.00011205,2]
[353164195,1739617858608,-556.84,0.00011205,2]
[353164196,1739617858620,-322.9,0.00011205,2]
[353164197,1739617858633,-500.0,0.00011205,2]
[353164198,1739617858645,-795.54,0.00011205,2]
[353164199,1739617858663,-923.83,0.00011205,2]
[353164200,1739617858676,-500.0,0.00011205,2]
[353164201,1739617858689,-573.49,0.00011205,2]
[353164202,1739617858701,-500.0,0.00011205,2]
[353164203,1739617858711,-1129.06,0.00011205,2]
[353164204,1739617858723,-500.0,0.00011205,2]
[353164205,1739617858736,-504.0569734,0.00011205,2]
[353164206,1739617858749,-500.0,0.00011205,2]
[353164207,1739617858761,-500.0,0.00011205,2]
[353164208,1739617858775,-933.1,0.00011205,2]
[353164209,1739617858788,-567.48,0.00011205,2]
[353164210,1739617858801,-500.0,0.00011205,2]
[353164211,1739617858813,-500.0,0.00011205,2]
[353164212,1739617858826,-500.0,0.00011205,2]
[353164213,1739617858838,-500.0,0.00011205,2]
[353164214,1739617858850,-702.01844705,0.00011205,2]
[353164215,1739617858865,-413.67155295,0.00011205,2]
[353164216,1739617858877,-500.0,0.00011205,2]
[353164217,1739617858891,-254.96,0.00011205,2]
[353164218,1739617858903,-500.0,0.00011205,2]
[353164219,1739617858915,-678.3,0.00011205,2]
[353164220,1739617858926,-500.0,0.00011205,2]
[353164221,1739617858937,-648.47,0.00011205,2]
[353164222,1739617858947,-1205.2,0.00011205,2]
[353164223,1739617858960,-322.14844705,0.00011205,2]
[353164224,1739617858976,-177.85155295,0.00011205,2]
[353164225,1739617858986,-500.0,0.00011205,2]
[353164226,1739617858996,-640.14,0.00011205,2]
[353164227,1739617859007,-529.08,0.00011205,2]
[353164228,1739617859020,-546.76,0.00011205,2]
[353164229,1739617859033,-500.0,0.00011205,2]
[353164230,1739617859043,-55.91844705,0.00011205,2]
[353164231,1739617859056,-444.08155295,0.00011205,2]
[353164232,1739617859069,-500.0,0.00011205,2]
[353164233,1739617859080,-274.84980074,0.00011205,2]
[353164234,1739617859093,-435.13019926,0.00011205,2]
[353164235,1739617859104,-500.0,0.00011205,2]
[353164236,1739617859115,-552.74,0.00011205,2]
[353164237,1739617859126,-295.90903363,0.00011205,2]
[353164238,1739617859142,-204.09096637,0.00011205,2]
[353164239,1739617859153,-143.08174896,0.00011205,2]
[353164240,1739617859175,-1040.10825104,0.00011205,2]
[353164241,1739617859189,-500.0,0.00011205,2]
[353164242,1739617859200,-500.0,0.00011205,2]
[353164243,1739617859212,-500.0,0.00011205,2]
[353164244,1739617859223,-500.0,0.00011205,2]
[353164245,1739617859235,-500.0,0.00011205,2]
[353164246,1739617859246,-509.02,0.00011205,2]
[353164247,1739617859258,-500.0,0.00011205,2]
[353164248,1739617859269,-500.0,0.00011205,2]
[353164249,1739617859280,-386.03618504,0.00011205,2]
[353164250,1739617859295,-113.96381496,0.00011205,2]
[353164251,1739617859306,-500.0,0.00011205,2]
[353164252,1739617859317,-500.0,0.00011205,2]
[353164253,1739617859328,-500.0,0.00011205,2]
[353164254,1739617859339,-505.22,0.00011205,2]
[353164255,1739617859350,-500.0,0.00011205,2]
[353164256,1739617859361,-500.0,0.00011205,2]
[353164257,1739617859372,-500.0,0.00011205,2]
[353164258,1739617859383,-468.05931347,0.00011205,2]
[353164259,1739617859396,-31.94068653,0.00011205,2]
[353164260,1739617859407,-822.61,0.00011205,2]
[353164261,1739617859418,-500.0,0.00011205,2]
[353164262,1739617859429,-749.41,0.00011205,2]
[353164263,1739617859440,-562.51,0.00011205,2]
[353164264,1739617859451,-1232.56,0.00011205,2]